Cogmind - Beta 12 @@@ ROGUE MODE // 2023.09.28 @ 20:08:31 Player: most_lamentable Result: Destroyed by D-53 Grenadier with Mini Grenade Launcher Performance ------------- Evolutions (0) 0 Regions Visited (4) 800 Robots Destroyed (20) 100 Value Destroyed (432) 432 Prototype IDs (4) 80 Alien Tech Used (0) 0 Bonus (0) 0 TOTAL SCORE: 1412 Bonus ------- None Cogmind --------- Core Integrity 0/250 Matter 253/300 Energy 97/100 System Corruption 0% Temperature Cool (0) Movement Walking (200) Ox1 Location -9/Mines Parts ------- > --- POWER (1) -------- (None) > --- PROPULSION (2) --- Aluminum Leg Makeshift Leg > --- UTILITY (2) ------ Large Storage Unit ECM Suite > --- WEAPON (2) ------- Improved Medium Laser Slug Cannon > --- INVENTORY (15) --- Ion Engine Ion Engine Aluminum Leg Aluminum Leg Small Storage Unit High-capacity Matter Pod (200) Sensor Array Faulty Experimental Sensor Array Signal Interpreter Transport Network Coupler Makeshift Salvage Targeting Computer Makeshift System Shield Improved Medium Laser Improved Medium Laser Rocket Launcher Peak State ------------ > --- POWER ------------ Ion Engine > --- PROPULSION ------- Aluminum Leg Makeshift Leg > --- UTILITY ---------- Large Storage Unit ECM Suite > --- WEAPON ----------- Improved Medium Laser Slug Cannon > --- INVENTORY -------- Ion Engine Ion Engine Aluminum Leg Aluminum Leg Small Storage Unit High-capacity Matter Pod Visual Processing Unit Sensor Array Experimental Sensor Array Signal Interpreter Transport Network Coupler Makeshift Salvage Targeting Computer Makeshift System Shield Improved Medium Laser Improved Medium Laser [Rating: 18] Favorites ----------- Power Ion Engine Engine Ion Engine Propulsion Aluminum Leg Leg Aluminum Leg Flight Unit Improved Flight Unit Utility Large Storage Unit Device ECM Suite Storage Large Storage Unit Protection Propulsion Shielding Weapon Improved Medium Laser Energy Gun Improved Medium Laser Ballistic Gun Assault Rifle Ballistic Cannon Slug Cannon Launcher Rocket Launcher Build | -11 -10 -10 -10 -9 ------- Run | Jun Mat Min Exi Min Slots Evolved . | . . . . . Power . | . . . . . Propulsion . | . . . . . Utility . | . . . . . Weapon . | . . . . . Parts Attached 25 | 7 14 1 1 2 Power 3 | 1 2 . . . Engine 3 | 1 2 . . . Core . | . . . . . Reactor . | . . . . . Propulsion 7 | 2 4 . 1 . Treads . | . . . . . Leg 6 | 2 3 . 1 . Wheel . | . . . . . Hover . | . . . . . Flight 1 | . 1 . . . Utility 5 | 1 4 . . . Device 2 | . 2 . . . Storage 2 | 1 1 . . . Processor . | . . . . . Hackware . | . . . . . Protection 1 | . 1 . . . Artifact . | . . . . . Weapon 10 | 3 4 1 . 2 Energy Gun 6 | 1 4 . . 1 Energy Cannon . | . . . . . Ballistic Gun 2 | 2 . . . . Ballistic Cannon 1 | . . 1 . . Launcher 1 | . . . . 1 Special Weapon . | . . . . . Impact Weapon . | . . . . . Slashing Weapon . | . . . . . Piercing Weapon . | . . . . . Special Melee Weapon . | . . . . . Unidentified Prototypes 2 | . 2 . . . Parts Lost 3 | . 2 . . 1 Power 2 | . 1 . . 1 Propulsion . | . . . . . Utility 1 | . 1 . . . Weapon . | . . . . . Highest Loss Streak 1 | . 1 . . 1 To Critical Strikes . | . . . . . Average Slot Usage (%) 99 | . 99 100 100 100 Engine 13 | . 13 14 14 14 Leg 28 | . 28 28 28 28 Device 13 | . 12 14 14 14 Storage 14 | . 14 14 14 14 Energy Gun 21 | . 26 26 14 8 Ballistic Cannon 5 | . . 1 14 14 Naked Turns . | . . . . . Heaviest Build 38 | 14 33 37 37 38 Greatest Support 30 | 20 20 20 30 30 Greatest Overweight (x) 1 | 1 1 1 1 1 Average Overweight (x) . | . . 1 1 1 Largest Inventory Capacity 15 | 8 15 15 15 15 Average Capacity 14 | 6 13 15 15 15 Most Carried 15 | 8 15 15 15 15 Average Carried 13 | 4 12 14 14 14 Final Capacity 15 | 8 15 15 15 15 Final Carried 15 | 6 14 15 15 15 Class Distribution -------------------- 100% | Mutant Dominant Class ---------------- Mutant | -10/Materials Mutant | -10/Mines Mutant | -10/Exiles Mutant | -9/Mines Resources | -11 -10 -10 -10 -9 ----------- Run | Jun Mat Min Exi Min Matter Collected 609 | 215 394 . . . Remotely . | . . . . . Salvage Created 529 | . 483 46 . . Parts 48 | . 42 6 . . Haulers Intercepted . | . . . . . Recyclers Shooed . | . . . . . Parts Field Recycled . | . . . . . Retrieved Matter . | . . . . . Parts Self-Destructed . | . . . . . Prevented . | . . . . . Kills | -11 -10 -10 -10 -9 ------- Run | Jun Mat Min Exi Min Combat Hostiles Destroyed 18 | . 15 3 . . Guns 18 | . 15 3 . . Classes Destroyed 4 | . 4 . . . Tunneler 1 | . 1 . . . Watcher 1 | . 1 . . . Swarmer 9 | . 6 3 . . Grunt 9 | . 9 . . . Best Kill Streak 3 | . 3 3 . . Combat Bots Only 3 | . 3 3 . . Max Kills in Single Turn 2 | . 2 2 . . Gunslinging 1 | . 1 1 . . Exploded . | . . . . . Melee . | . . . . . Uniques/NPCs Destroyed . | . . . . . Combat | -11 -10 -10 -10 -9 -------- Run | Jun Mat Min Exi Min Damage Taken 916 | . 341 58 . 517 Core 268 | . 45 15 . 208 Absorbed by Shields . | . . . . . Regen/Repaired (Parts) 19 | . 19 . . . Core Remaining (%) 100 | 100 . . . . Volleys Fired 33 | . 28 3 1 1 Largest 2 | . 2 2 2 2 Hottest 112 | . 112 112 104 104 Shots Fired 66 | . 56 6 2 2 Gun 64 | . 56 6 1 1 Cannon 2 | . . . 1 1 Launcher . | . . . . . Special . | . . . . . Kinetic 5 | . 3 . 1 1 Thermal 58 | . 50 6 1 1 Explosive . | . . . . . Electromagnetic 3 | . 3 . . . Robot Hit Streak 6 | . 6 2 . 1 Robot Miss Streak 4 | . 3 4 . 1 Penetration Max . | . . . . . Secondary Targets 3 | . 2 1 . . Max Gunslinging Chain 1 | . 1 1 . . Shots Hit Robots 36 | . 33 2 . 1 Core Hits 21 | . 18 3 . . Critical Kills . | . . . . . Critical Parts Destroyed . | . . . . . Critical Strikes 3 | . 2 1 . . Burn 3 | . 2 1 . . Melee Attacks . | . . . . . Impact . | . . . . . Slashing . | . . . . . Piercing . | . . . . . Sneak Attacks . | . . . . . Combat Hostiles . | . . . . . Follow-up Attacks . | . . . . . Damage Inflicted 708 | . 590 100 . 18 Guns 708 | . 590 100 . 18 Cannons . | . . . . . Explosions . | . . . . . Melee . | . . . . . Ramming . | . . . . . Kinetic 44 | . 44 . . . Thermal 652 | . 534 100 . 18 Explosive . | . . . . . Electromagnetic 12 | . 12 . . . Impact . | . . . . . Slashing . | . . . . . Piercing . | . . . . . Highest Corruption . | . . . . . Average Corruption . | . . . . . Corruption Purged . | . . . . . Corruption Blocked . | . . . . . Overload Shots . | . . . . . Overflow Damage . | . . . . . Projectiles . | . . . . . Explosions . | . . . . . Melee . | . . . . . Knockbacks . | . . . . . Impact . | . . . . . Kinetic . | . . . . . Secondary . | . . . . . Self-Inflicted Damage . | . . . . . Shots . | . . . . . Rammed . | . . . . . Targets Rammed . | . . . . . Kicked . | . . . . . Crushed . | . . . . . Highest Temperature 287 | . 287 153 42 42 Average Temperature 99 | . 108 77 22 22 Received Heat Transfer 90 | . 90 . . . Effects 1 | . 1 . . . Energy Bleed 1 | . 1 . . . Siege Activations . | . . . . . Robots Corrupted . | . . . . . Combat Hostiles . | . . . . . Parts Fried . | . . . . . Impact Corruptions . | . . . . . Robots Melted . | . . . . . Combat Hostiles . | . . . . . Parts Melted 1 | . . 1 . . Heat Transferred 1628 | . 1295 296 . 37 Parts Sabotaged . | . . . . . Parts Stolen . | . . . . . Parts Stripped . | . . . . . Power Chain Reactions . | . . . . . Missiles Intercepted . | . . . . . Alert | -11 -10 -10 -10 -9 ------- Run | Jun Mat Min Exi Min Peak Influence 239 | . 239 98 . 1 Initial 28 | . . 28 . . Average 76 | . 102 56 . . Maximum Alert Level 1 | . 1 . . . Low Security (%) 97 | 100 95 100 . 100 Level 1 2 | . 4 . . . Level 2 . | . . . . . Level 3 . | . . . . . Level 4 . | . . . . . Level 5 . | . . . . . High Security . | . . . . . Max Security . | . . . . . Squads Dispatched 3 | . 3 . . . Investigation . | . . . . . Extermination . | . . . . . Reinforcement 3 | . 3 . . . Assault . | . . . . . Garrison . | . . . . . Intercept . | . . . . . Searches Triggered . | . . . . . Construction Impeded . | . . . . . Haulers Reinforced . | . . . . . Active Scanning Responses . | . . . . . Cargo Convoy Interrupts . | . . . . . Stealth | -11 -10 -10 -10 -9 --------- Run | Jun Mat Min Exi Min Distress Signals 3 | . 3 . . . Communications Jammed . | . . . . . Distress Signals . | . . . . . Times Spotted 43 | . 22 3 . 18 Peak Tracking Total 11 | . 4 3 . 11 Tactical Retreats 1 | . . . . 1 Traps | -11 -10 -10 -10 -9 ------- Run | Jun Mat Min Exi Min Traps Triggered . | . . . . . Indirectly . | . . . . . Trap Hack Attempts . | . . . . . Triggered . | . . . . . Disarmed . | . . . . . Reprogrammed . | . . . . . Reused . | . . . . . Traps Extracted . | . . . . . Installed . | . . . . . Triggered . | . . . . . Machines | -11 -10 -10 -10 -9 ---------- Run | Jun Mat Min Exi Min Machines Disabled . | . . . . . Max in Single Turn . | . . . . . Machines Repaired . | . . . . . Machines Sabotaged . | . . . . . Overloaded Fab Kills . | . . . . . Hacking | -11 -10 -10 -10 -9 --------- Run | Jun Mat Min Exi Min Machines Accessed 6 | . 5 . 1 . Terminals 3 | . 3 . . . Fabricators . | . . . . . Repair Stations 1 | . 1 . . . Recycling Units 1 | . 1 . . . Scanalyzers . | . . . . . Garrison Access . | . . . . . Total Hacks 16 | . 13 . 3 . Successful 10 | . 7 . 3 . Failed 6 | . 6 . . . Catastrophic 1 | . 1 . . . Database Lockouts . | . . . . . Manual 8 | . 7 . 1 . Terminals 9 | . 9 . . . Fabricators . | . . . . . Repair Stations 2 | . 2 . . . Recycling Units 2 | . 2 . . . Scanalyzers . | . . . . . Garrison Access . | . . . . . Terminal Hacks 7 | . 4 . 3 . Record 3 | . . . 3 . Prototype ID Bank 1 | . 1 . . . Branch Access Points 1 | . 1 . . . Terminal Index 1 | . 1 . . . Alert Level 1 | . 1 . . . Fabricator Hacks . | . . . . . Repair Station Hacks 2 | . 2 . . . Scan Component 1 | . 1 . . . Repair 1 | . 1 . . . Recycling Unit Hacks 1 | . 1 . . . Report Inventory 1 | . 1 . . . Scanalyzer . | . . . . . Garrison Access Hacks . | . . . . . Unauthorized Hacks . | . . . . . Terminals . | . . . . . Fabricators . | . . . . . Repair Stations . | . . . . . Recycling Units . | . . . . . Scanalyzers . | . . . . . Garrison Access . | . . . . . Data Cores Recovered . | . . . . . Used . | . . . . . Hacking Detections 4 | . 4 . . . Full Trace Events . | . . . . . Feedback Events . | . . . . . Feedback Blocked . | . . . . . Robot Schematics Acquired . | . . . . . Robots Built . | . . . . . Authchips . | . . . . . Time . | . . . . . Total Robot Build Rating . | . . . . . Part Schematics Acquired . | . . . . . Parts Built . | . . . . . Authchips . | . . . . . Time . | . . . . . Total Part Build Rating . | . . . . . Parts Repaired 1 | . 1 . . . Time 26 | . 26 . . . Parts Recycled . | . . . . . Recycled Matter . | . . . . . Retrieved Matter . | . . . . . Retrieved Components . | . . . . . Parts Scanalyzed . | . . . . . Part Schematics Acquired . | . . . . . Parts Damaged . | . . . . . Bothacking | -11 -10 -10 -10 -9 ------------ Run | Jun Mat Min Exi Min Used RIF Installer . | . . . . . Robots Hacked . | . . . . . Non-combat . | . . . . . Combat . | . . . . . Robot Hacks Applied . | . . . . . Relay Couplers Released . | . . . . . Fabnet Peak Effective % . | . . . . . Robots Rewired . | . . . . . Allies Hacked . | . . . . . Hacks Repelled . | . . . . . Allies | -11 -10 -10 -10 -9 -------- Run | Jun Mat Min Exi Min Total Allies . | . . . . . Largest Group . | . . . . . Highest-Rated Group . | . . . . . Highest-Rated Ally . | . . . . . Total Orders . | . . . . . Ally Attacks . | . . . . . Total Damage . | . . . . . Kills . | . . . . . Allies Corrupted . | . . . . . Allies Melted . | . . . . . Intel | -11 -10 -10 -10 -9 ------- Run | Jun Mat Min Exi Min Robot Analysis Total . | . . . . . Derelict Logs Recovered 2 | . . . . 2 Drone Launches . | . . . . . Drone Recoveries . | . . . . . Exploration | -11 -10 -10 -10 -9 ------------- Run | Jun Mat Min Exi Min Turns Passed 3186 | 72 1268 689 970 187 Spaces Moved 1609 | 47 624 354 494 90 Core 9 | 9 . . . . Treads . | . . . . . Legs 1600 | 38 624 354 494 90 Wheels . | . . . . . Hover . | . . . . . Flight . | . . . . . Fastest Speed 50 | 50 120 190 190 200 Average Speed 183 | 114 173 190 194 200 Slowest Speed 200 | 120 190 190 200 200 Overloaded Moves . | . . . . . Propulsion Burnouts . | . . . . . Robots Hopped . | . . . . . Cave-ins Triggered . | . . . . . Exploration Rate (%) 57 | 3 90 84 89 22 Regions Visited 4 Branch Regions 3 Pre-discovered Areas 1 | . . . . 1 Known Exits Taken 1 | . 1 . . . Unknown Exits Taken 3 | 1 . 1 1 . Scrap Searched . | . . . . . Spaces Dug . | . . . . . Terrain Destroyed 1 | . . . . 1 Melee . | . . . . . Projectile 1 | . . . . 1 AOE . | . . . . . Terrain Rammed . | . . . . . Walls Destroyed . | . . . . . Machines Disabled . | . . . . . Actions | -11 -10 -10 -10 -9 --------- Run | Jun Mat Min Exi Min Total 1788 | 65 760 365 503 95 Wait 58 | . 52 6 . . Move 1605 | 46 623 353 493 90 Hop . | . . . . . Pick Up 42 | 12 25 1 3 1 Fast Attach 2 | . 1 1 . . Attach 10 | 6 4 . . . Detach . | . . . . . Swap 13 | 1 9 . 1 2 Drop 24 | . 18 1 4 1 Fire 33 | . 28 3 1 1 Melee . | . . . . . Ram . | . . . . . Kick . | . . . . . Crush . | . . . . . Escape Stasis . | . . . . . Rewire 1 | . . . 1 . Trap . | . . . . . Miscellaneous . | . . . . . Route ------- -11/Junkyard -10/Materials (discovered 4 exits: [*Mat x3] / *Min) -10/Mines -10/Exiles (discovered 2 exits: [*Min x2]) -9/Mines (discovered 1 exit: Mat) History --------- Turn | Location | Event 15 | -11/Junkyard | Discovered new exit (range 15) 73 | -11/Junkyard | Entered Materials 264 | -10/Materials | Repaired Ion Engine? 309 | -10/Materials | Build established: Mutant 456 | -10/Materials | Identified exit to Mines 751 | -10/Materials | Discovered new exit (range 6) 854 | -10/Materials | Discovered new exit (range 9) 968 | -10/Materials | Discovered new exit (range 15) 1341 | -10/Materials | Entered Mines 1560 | -10/Mines | Found a damaged Exp. Sensor Array with a note attached 1564 | -10/Mines | Found Prototype Device 1945 | -10/Mines | A weapon hastily lodged in a ceiling crevice suddenly fell to the ground 2023 | -10/Mines | Deemed a non-threat by the Exiles lab entrance 2023 | -10/Mines | Discovered new exit (range 5) 2030 | -10/Mines | Entered Exiles 2030 | -10/Exiles | Found Exiles lab destroyed 2061 | -10/Exiles | Discovered new exit (range 15) 2620 | -10/Exiles | Discovered new exit (range 14) 3000 | -10/Exiles | Entered Mines 3001 | -9/Mines | Learned location of Storage (-7) 3086 | -9/Mines | Learned Materials non-interactive machine intel 3095 | -9/Mines | Received a Rocket Launcher from a helpful Derelict 3129 | -9/Mines | Identified exit to Materials 3140 | -9/Mines | Assembled infested the area 3145 | -9/Mines | Assisted by a Guerilla fighting off Assembled 3160 | -9/Mines | Core integrity fell below 50% 3181 | -9/Mines | Core integrity fell below 20% 3187 | -9/Mines | Destroyed by D-53 Grenadier with Mini Grenade Launcher Last Messages --------------- 03158_ D-53 Grenadier unfolds itself. 03158_ T-07 Excavator destroyed. 03158_ Core Extractor disabled. 03159_ as-63752 destroyed. 03159_ as-65811 destroyed. 03159_ as-75983 destroyed. 03162_ as-19718 destroyed. 03163_ as-03955 destroyed. 03163_ as-89653 destroyed. 03164_ as-49495 destroyed. 03164_ as-91426 destroyed. 03166_ The unstable cave ceiling collapses. 03166_ as-91251 destroyed. 03167_ The unstable cave ceiling collapses. 03168_ as-49307 destroyed. 03168_ as-19996 destroyed. 03169_ as-36465 destroyed. 03170_ as-60991 destroyed. 03179_ The unstable cave ceiling collapses. 03186_ Ion Engine destroyed. Map ----- +----------------------------------------------------+ | ?????????????????????????????????????????????????? | | ?????????????????????????????????????????????????? | | ?????????????????????????????????????????????????? | | ?????????????????????????????????????????????????? | | ???????????????????????????????????? #???????????? | | ???????????????????????????????# ##? ????????????? | | ??????????????????????????????# ???????????? | | ?????????????????????????????## #??????????? | | ????????????????????????????? #??????????? | | ?????????????????????????????# ##?????????? | | ?????????????????????????????# #?????????? | | ????????????????????????????? #?????????? | | ????????????????????????????## ##?????????? | | ????????????????????????????# ##????????? | | ?????????????????????????????# #????????? | | ???????????????????????????### ###???????? | | ?????????????????????????### d # #????? | | ????????????????????????## d %" #????? | | ??????????????????????### " #????? | | ??????????????????????# # #####????? | | ??????????????????????# #????????? | | ?????????????????????## ### #####????????? | | ?????????????????????# #????????????????? | | ?????????????????????## ##????????????????? | | ?????????????????????# #?????????????????? | | ?????????????????????### @ #?????????????????? | | ??????????????????????# #?????????????????? | | ?????????????????#????# ## ###?????????????????? | | ???????????## #### #### ####???????????????????? | | ?????????? ##????????????????????? | | ?????????? ##???????????????????? | | ???????????###### #####r #???????????????????? | | ??????????????????????# ##???#??????????????? | | ??????????????????????# ### ##?????????????? | | ??????????????????????# #?????????????? | | ??????????????????????## #?????????????? | | ???????????????????????# ######?????????????? | | ???????????????????????# t ##??????????????????? | | ???????????????????????## ##???????????????????? | | ????????????????????????# ##????????????????????? | | ????????????????????????# #?????????????????????? | | ????????????????????????# ##????????????????????? | | ????????????????????????# #????????????????????? | | ????????????????????????### #????????????????????? | | ??????????????????????????# ######???????????????? | | ??????????????????????????# #???????????????? | | ??????????????????????????##### #### #??????????? | | ?????????????????????????###### #??????????? | | ?????????????????????????# ######??????????? | | ?????????????????????????# #### #########???????? | +----------------------------------------------------+ Best States ------------- Heat Dissipation 25 Energy Generation 10 Energy Capacity 250 Matter Stores 300 Matter Capacity 300 Sight Range 16 Terrain Scan Range 16 Terrain Scan Density 10 ECM Strength 1 Propulsion Shielding 33 Evasion (%) 55 Item Schematics ----------------- None Robot Schematics ------------------ None Fabricated ------------ Nothing Alien Tech Used ----------------- None Achievements -------------- None Challenges ------------ None Game ------ Seed PlasmaTacticalClaymores Manual? 0 Play Time 00:30:45 Cumulative 21.1 hours Start 2023.09.27 @ 11:50:15 End 2023.09.28 @ 20:08:31 Sessions 3 Manual Loads 0 Difficulty Rogue Special Mode None Game No. 19 Rogue 19 Adventurer 0 Explorer 0 Win Type - Total 0 Types 0/0/0/0/0/0/0/0/0 Lore% 18 Gallery% 20 Achievement% 19 Wizard Run 0 Options --------- ASCII 0 Keyboard 0 Movement Mouse Keybinds 0 Fullscreen 2 Font 18/SmallcapsGlow Map View 76x50 Tactical HUD 1 Map Filters NONE Filters NONE Steam 1 RUN: 9ed0ce5b-92af-4498-8d97-c769280828a2